fUST/lending_fUST_20240920
["ID","MTS","AMOUNT","RATE_DAILY","PERIOD"]
[338622099,1726805441687,-500.0,0.00016739,2]
[338622100,1726805441697,-500.0,0.00016739,2]
[338622101,1726805441713,-500.0,0.00016739,2]
[338622102,1726805441724,-501.68759347,0.00016739,2]
[338622103,1726805441733,-151.0,0.00016739,2]
[338622104,1726805441742,-151.0,0.00016739,2]
[338622105,1726805441751,-151.0,0.00016739,2]
[338622106,1726805441760,-548.89,0.00016739,2]
[338622107,1726805441770,-500.0,0.00016739,2]
[338622108,1726805441779,-151.0,0.00016739,2]
[338622109,1726805441788,-500.0,0.00016739,2]
[338622110,1726805441797,-151.0,0.00016739,2]
[338622111,1726805441806,-151.0,0.00016739,2]
[338622112,1726805441816,-151.0,0.00016739,2]
[338622113,1726805441826,-151.0,0.00016739,2]
[338622114,1726805441835,-500.0,0.00016739,2]
[338622115,1726805441848,-500.0,0.00016739,2]
[338622116,1726805441858,-500.0,0.00016739,2]
[338622117,1726805441867,-500.0,0.00016739,2]
[338622118,1726805441878,-500.0,0.00016739,2]
[338622119,1726805441888,-500.0,0.00016739,2]
[338622120,1726805441898,-500.0,0.00016739,2]
[338622121,1726805441908,-500.0,0.00016739,2]
[338622122,1726805441918,-500.0,0.00016739,2]
[338622123,1726805441927,-867.72,0.00016739,2]
[338622124,1726805441937,-500.0,0.00016739,2]
[338622125,1726805441946,-500.0,0.00016739,2]
[338622126,1726805441962,-1000.0,0.00016739,2]
[338622127,1726805441972,-850.97,0.00016739,2]
[338622128,1726805441981,-500.0,0.00016739,2]
[338622129,1726805441991,-500.0,0.00016739,2]
[338622130,1726805442001,-500.0,0.00016739,2]
[338622131,1726805442010,-500.0,0.00016739,2]
[338622132,1726805442020,-500.0,0.00016739,2]
[338622133,1726805442029,-630.5,0.00016739,2]
[338622134,1726805442039,-500.0,0.00016739,2]
[338622135,1726805442048,-500.0,0.00016739,2]
[338622136,1726805442058,-500.0,0.00016739,2]
[338622137,1726805442068,-500.0,0.00016739,2]
[338622138,1726805442078,-500.0,0.00016739,2]
[338622139,1726805442087,-995.79,0.00016739,2]
[338622140,1726805442097,-868.44,0.00016739,2]
[338622141,1726805442107,-500.7574108,0.00016739,2]
[338622142,1726805442116,-891.83,0.00016739,2]
[338622143,1726805442126,-500.0,0.00016739,2]
[338622144,1726805442135,-500.0,0.00016739,2]
[338622145,1726805442146,-502.1522072,0.00016739,2]
[338622146,1726805442156,-668.64,0.00016739,2]
[338622147,1726805442166,-500.0,0.00016739,2]
[338622148,1726805442178,-508.73113091,0.00016739,2]
[338622149,1726805442187,-500.0,0.00016739,2]
[338622150,1726805442196,-591.22,0.00016739,2]
[338622151,1726805442212,-647.06,0.00016739,2]
[338622152,1726805442221,-500.0,0.00016739,2]
[338622153,1726805442230,-247.859748,0.00016739,2]
[338622154,1726805442239,-247.859748,0.00016739,2]
[338622155,1726805442249,-247.859748,0.00016739,2]
[338622156,1726805442258,-247.859748,0.00016739,2]
[338622157,1726805442267,-247.859748,0.00016739,2]
[338622158,1726805442276,-247.859748,0.00016739,2]
[338622159,1726805442286,-247.859748,0.00016739,2]
[338622161,1726805442296,-247.859748,0.00016739,2]
[338622162,1726805442305,-247.859748,0.00016739,2]
[338622163,1726805442315,-247.859748,0.00016739,2]
[338622164,1726805442325,-530.87,0.00016739,2]
[338622165,1726805442334,-500.0,0.00016739,2]
[338622166,1726805442344,-563.7,0.00016739,2]
[338622167,1726805442354,-513.59,0.00016739,2]
[338622168,1726805442363,-500.0,0.00016739,2]
[338622169,1726805442373,-500.30099658,0.00016739,2]
[338622170,1726805442383,-151.0,0.00016739,2]
[338622171,1726805442394,-151.0,0.00016739,2]
[338622172,1726805442404,-151.0,0.00016739,2]
[338622173,1726805442413,-151.0,0.00016739,2]
[338622174,1726805442425,-151.0,0.00016739,2]
[338622175,1726805442434,-500.0,0.00016739,2]
[338622176,1726805442444,-500.45577848,0.00016739,2]
[338622177,1726805442459,-500.0,0.00016739,2]
[338622178,1726805442468,-500.0,0.00016739,2]
[338622179,1726805442477,-151.0,0.00016739,2]
[338622180,1726805442487,-151.0,0.00016739,2]
[338622181,1726805442496,-151.0,0.00016739,2]
[338622182,1726805442505,-151.0,0.00016739,2]
[338622183,1726805442513,-151.0,0.00016739,2]
[338622184,1726805442522,-500.0,0.00016739,2]
[338622185,1726805442531,-599.17,0.00016739,2]
[338622186,1726805442540,-500.0,0.00016739,2]
[338622187,1726805442549,-502.96817472,0.00016739,2]
[338622188,1726805442558,-151.0,0.00016739,2]
[338622189,1726805442568,-151.0,0.00016739,2]
[338622190,1726805442577,-151.0,0.00016739,2]
[338622191,1726805442586,-151.0,0.00016739,2]
[338622192,1726805442596,-500.0,0.00016739,2]
[338622193,1726805442606,-500.0,0.00016739,2]
[338622194,1726805442615,-500.0,0.00016739,2]
[338622195,1726805442625,-500.0,0.00016739,2]
[338622196,1726805442635,-1864.674522,0.00016739,2]
[338622197,1726805442644,-1864.674522,0.00016739,2]
[338622198,1726805442655,-947.31,0.00016739,2]
[338622199,1726805442665,-1864.674522,0.00016739,2]
[338622200,1726805442674,-1864.674522,0.00016739,2]
[338622201,1726805442683,-1864.674522,0.00016739,2]
[338622202,1726805442693,-294.731558,0.00016739,2]
[338622203,1726805442703,-1864.674522,0.00016739,2]
[338622204,1726805442722,-1864.674522,0.00016739,2]
[338622205,1726805442731,-1864.674522,0.00016739,2]
[338622206,1726805442741,-1864.674522,0.00016739,2]
[338622208,1726805442751,-1864.674522,0.00016739,2]
[338622210,1726805442760,-500.0,0.00016739,2]
[338622211,1726805442770,-500.0,0.00016739,2]
[338622212,1726805442779,-500.0,0.00016739,2]
[338622213,1726805442789,-500.0,0.00016739,2]
[338622214,1726805442799,-500.0,0.00016739,2]
[338622215,1726805442809,-1147.3,0.00016739,2]
[338622216,1726805442819,-500.0,0.00016739,2]
[338622217,1726805442828,-500.0,0.00016739,2]
[338622218,1726805442838,-590.79,0.00016739,2]
[338622219,1726805442851,-634.26,0.00016739,2]
[338622220,1726805442861,-707.46,0.00016739,2]
[338622221,1726805442870,-591.26055952,0.00016739,2]
[338622223,1726805442879,-500.0,0.00016739,2]
[338622225,1726805442890,-500.0,0.00016739,2]
[338622227,1726805442899,-500.0,0.00016739,2]
[338622229,1726805442909,-500.0,0.00016739,2]
[338622231,1726805442918,-500.0,0.00016739,2]
[338622233,1726805442929,-500.0,0.00016739,2]
[338622235,1726805442938,-500.0,0.00016739,2]
[338622236,1726805442947,-500.0,0.00016739,2]
[338622238,1726805442960,-500.0,0.00016739,2]
[338622242,1726805442970,-154.346557,0.000168,2]
[338622245,1726805442979,-150.112233,0.000168,2]
[338622246,1726805442989,-150.112243,0.000168,2]
[338622250,1726805442999,-13865.5068559,0.00016823,2]
[338622252,1726805443008,-8317.38495657,0.00016823,2]
[338622254,1726805443018,-151.0,0.00016833,2]
[338622256,1726805443027,-247.859748,0.00016833,2]
[338622258,1726805443036,-247.859748,0.00016833,2]
[338622261,1726805443046,-151.0,0.00016833,2]
[338622263,1726805443056,-151.0,0.00016833,2]
[338622265,1726805443065,-1864.674522,0.00016833,2]
[338622267,1726805443075,-1864.674525,0.00016833,2]
[338622269,1726805443084,-27731.0137118,0.00016833,2]
[338622271,1726805443094,-16634.7699131,0.00016833,2]
[338622272,1726805443103,-500.0,0.00016843,2]
[338622274,1726805443112,-500.0,0.00016843,2]
[338622276,1726805443121,-500.0,0.00016843,2]
[338622278,1726805443131,-501.90049984,0.00016843,2]
[338622280,1726805443140,-500.0,0.00016843,2]
[338622282,1726805443149,-500.0,0.00016843,2]
[338622283,1726805443158,-500.0,0.00016843,2]
[338622284,1726805443167,-340.22213588,0.00016843,2]
[338622291,1726805443662,-151.0,0.00016702,2]
[338622292,1726805443673,-300.0,0.00016718,2]
[338622293,1726805443683,-159.77786412,0.00016843,2]
[338622294,1726805443692,-500.0,0.00016843,2]
[338622295,1726805443702,-500.0,0.00016843,2]
[338622296,1726805443714,-500.0,0.00016843,2]
[338622297,1726805443724,-362.44513617,0.00016843,2]
[338622298,1726805443734,-533.27,0.00016843,2]
[338622299,1726805443744,-500.0,0.00016843,2]
[338622300,1726805443753,-518.74495504,0.00016843,2]
[338622301,1726805443764,-500.0,0.00016843,2]
[338622302,1726805443773,-500.0,0.00016843,2]
[338622303,1726805443783,-232.79222972,0.00016843,2]
[338622304,1726805443792,-1065.68,0.00016843,2]
[338622305,1726805443801,-947.15,0.00016843,2]
[338622306,1726805443810,-500.0,0.00016843,2]
[338622307,1726805443820,-500.0,0.00016843,2]
[338622308,1726805443829,-500.0,0.00016843,2]
[338622309,1726805443842,-500.0,0.00016843,2]
[338622310,1726805443851,-500.33118031,0.00016843,2]
[338622311,1726805443861,-500.0,0.00016843,2]
[338622312,1726805443870,-623.27667102,0.00016843,2]
[338622313,1726805443879,-500.0,0.00016843,2]
[338622314,1726805443889,-500.0,0.00016843,2]
[338622315,1726805443900,-500.0,0.00016843,2]
[338622316,1726805443909,-500.0,0.00016843,2]
[338622317,1726805443918,-500.0,0.00016843,2]
[338622318,1726805443927,-500.0,0.00016843,2]
[338622319,1726805443937,-712.84,0.00016843,2]
[338622320,1726805443946,-1310.06,0.00016843,2]
[338622321,1726805443958,-500.0,0.00016843,2]
[338622322,1726805443967,-1070.22,0.00016843,2]
[338622323,1726805443977,-500.0,0.00016843,2]
[338622324,1726805443986,-500.0,0.00016843,2]
[338622325,1726805443995,-621.17104203,0.00016843,2]
[338622326,1726805444012,-684.80895797,0.00016843,2]
[338622327,1726805444022,-500.0,0.00016843,2]
[338622328,1726805444032,-667.09,0.00016843,2]
[338622329,1726805444042,-500.0,0.00016843,2]
[338622330,1726805444051,-884.93,0.00016843,2]
[338622331,1726805444061,-511.21664373,0.00016843,2]
[338622332,1726805444071,-500.32655943,0.00016843,2]
[338622333,1726805444080,-500.0,0.00016843,2]
[338622334,1726805444090,-501.78740809,0.00016843,2]
[338622335,1726805444099,-501.76,0.00016843,2]
[338622336,1726805444109,-500.71126245,0.00016843,2]
[338622337,1726805444118,-500.0,0.00016843,2]
[338622338,1726805444127,-500.32577325,0.00016843,2]
[338622339,1726805444137,-833.43,0.00016843,2]
[338622340,1726805444147,-500.28808751,0.00016843,2]
[338622341,1726805444156,-500.0,0.00016843,2]
[338622342,1726805444166,-1443.4,0.00016843,2]
[338622343,1726805444176,-500.0,0.00016843,2]
[338622344,1726805444187,-1131.52,0.00016843,2]
[338622345,1726805444196,-500.40273037,0.00016843,2]
[338622346,1726805444210,-500.0,0.00016843,2]
[338622347,1726805444221,-596.98,0.00016843,2]
[338622348,1726805444231,-850.59,0.00016843,2]
[338622349,1726805444241,-151.0,0.00016843,2]
[338622350,1726805444250,-1363.68,0.00016843,2]
[338622351,1726805444260,-500.0,0.00016843,2]
[338622352,1726805444269,-500.0,0.00016843,2]
[338622353,1726805444280,-521.88,0.00016843,2]
[338622354,1726805444290,-500.0,0.00016843,2]
[338622355,1726805444300,-500.0,0.00016843,2]
[338622356,1726805444309,-501.42714254,0.00016843,2]
[338622357,1726805444319,-591.31,0.00016843,2]
[338622358,1726805444329,-285.40352866,0.00016843,2]
[338622359,1726805444338,-500.0,0.00016843,2]
[338622360,1726805444348,-500.0,0.00016843,2]
[338622361,1726805444359,-500.0,0.00016843,2]
[338622362,1726805444368,-1338.31,0.00016843,2]
[338622363,1726805444378,-500.0,0.00016843,2]
[338622364,1726805444387,-927.62,0.00016843,2]
[338622365,1726805444397,-500.0,0.00016843,2]
[338622366,1726805444406,-500.2075416,0.00016843,2]
[338622367,1726805444416,-500.0,0.00016843,2]
[338622368,1726805444425,-500.0,0.00016843,2]
[338622369,1726805444435,-500.7396851,0.00016843,2]
[338622370,1726805444445,-500.0,0.00016843,2]
[338622371,1726805444459,-562.22,0.00016843,2]
[338622372,1726805444469,-500.0,0.00016843,2]
[338622373,1726805444478,-500.0,0.00016843,2]
[338622374,1726805444488,-500.0,0.00016843,2]
[338622375,1726805444498,-853.86,0.00016843,2]
[338622376,1726805444508,-641.37227009,0.00016843,2]
[338622377,1726805444518,-500.0,0.00016843,2]
[338622378,1726805444527,-415.01676439,0.00016843,2]
[338622379,1726805444537,-500.0,0.00016843,2]
[338622380,1726805444547,-500.0,0.00016843,2]
[338622381,1726805444557,-500.0,0.00016843,2]
[338622382,1726805444566,-500.0,0.00016843,2]
[338622383,1726805444576,-153.09853552,0.00016843,2]
[338622384,1726805444585,-500.0,0.00016843,2]
[338622385,1726805444596,-836.64,0.00016843,2]
[338622386,1726805444606,-500.0,0.00016843,2]
[338622387,1726805444616,-500.0,0.00016843,2]
[338622388,1726805444626,-500.0,0.00016843,2]
[338622389,1726805444636,-501.15538565,0.00016843,2]
[338622390,1726805444646,-500.0,0.00016843,2]
[338622391,1726805444655,-500.0,0.00016843,2]
[338622392,1726805444665,-500.0,0.00016843,2]
[338622393,1726805444674,-500.0,0.00016843,2]
[338622394,1726805444684,-821.21,0.00016843,2]
[338622395,1726805444693,-500.0,0.00016843,2]
[338622396,1726805444703,-500.0,0.00016843,2]
[338622397,1726805444714,-210.32892686,0.00016843,2]
[338622398,1726805444724,-500.0,0.00016843,2]
[338622399,1726805444733,-500.0,0.00016843,2]
[338622400,1726805444743,-500.0,0.00016843,2]
[338622401,1726805444751,-503.84,0.00016843,2]
[338622402,1726805444761,-1274.762704,0.00016843,2]
[338622403,1726805444770,-500.0,0.00016843,2]
[338622404,1726805444780,-500.0,0.00016843,2]
[338622405,1726805444789,-500.0,0.00016843,2]
[338622406,1726805444799,-500.99201042,0.00016843,2]
[338622407,1726805444809,-500.0,0.00016843,2]
[338622408,1726805444819,-500.0,0.00016843,2]
[338622409,1726805444828,-500.0,0.00016843,2]
[338622410,1726805444838,-500.0,0.00016843,2]
[338622411,1726805444852,-500.0,0.00016843,2]
[338622412,1726805444861,-500.0,0.00016843,2]
[338622413,1726805444870,-500.0,0.00016843,2]
[338622414,1726805444879,-500.0,0.00016843,2]
[338622415,1726805444890,-500.0,0.00016843,2]
[338622416,1726805444899,-151.0,0.00016843,2]
[338622417,1726805444908,-500.0,0.00016843,2]
[338622418,1726805444920,-505.40457799,0.00016843,2]
[338622419,1726805444930,-151.0,0.00016843,2]
[338622420,1726805444940,-191.25028,0.00016843,2]
[338622421,1726805444949,-500.0,0.00016843,2]
[338622422,1726805444962,-627.10222502,0.00016843,2]
[338622423,1726805444972,-529.39340058,0.00016843,2]
[338622424,1726805444982,-500.18503955,0.00016843,2]
[338622425,1726805444991,-500.0,0.00016843,2]
[338622426,1726805445001,-500.0,0.00016843,2]
[338622427,1726805445010,-500.0,0.00016843,2]
[338622428,1726805445020,-500.0,0.00016843,2]
[338622429,1726805445030,-500.0,0.00016843,2]
[338622430,1726805445039,-502.41252017,0.00016843,2]
[338622431,1726805445049,-247.859748,0.00016843,2]
[338622432,1726805445058,-247.859748,0.00016843,2]
[338622433,1726805445067,-247.859748,0.00016843,2]
[338622434,1726805445076,-247.859748,0.00016843,2]
[338622435,1726805445085,-247.859748,0.00016843,2]
[338622436,1726805445095,-247.859755,0.00016843,2]
[338622437,1726805445106,-151.0,0.00016843,2]
[338622438,1726805445116,-151.0,0.00016843,2]
[338622439,1726805445125,-151.0,0.00016843,2]
[338622440,1726805445135,-151.0,0.00016843,2]
[338622441,1726805445144,-244.642545,0.00016843,2]
[338622442,1726805445155,-150.112233,0.000169,2]
[338622443,1726805445165,-150.112233,0.000169,2]
[338622444,1726805445175,-150.112233,0.000169,2]
[338622445,1726805445184,-150.112233,0.000169,2]
[338622446,1726805445194,-596.98,0.00016944,2]
[338622447,1726805445203,-596.98,0.00016944,2]
[338622448,1726805445215,-19534.94737979,0.00016976,2]
[338622449,1726805445229,-8196.06633201,0.00016976,2]
[338622450,1726805445239,-16634.7699131,0.00016976,2]
[338622451,1726805445248,-151.0,0.00016986,2]
[338622452,1726805445258,-1825.04,0.00016986,2]
[338622453,1726805445268,-500.0,0.00016986,2]
[338622454,1726805445277,-1274.762704,0.00016986,2]
[338622455,1726805445286,-582.02,0.00016986,2]
[338622456,1726805445296,-599.37,0.00016986,2]
[338622457,1726805445307,-359.95,0.00016986,2]
[338622458,1726805445316,-500.0,0.00016986,2]
[338622459,1726805445326,-500.0,0.00016986,2]
[338622460,1726805445340,-1178.89,0.00016986,2]
[338622461,1726805445350,-500.0,0.00016986,2]
[338622462,1726805445359,-501.08490612,0.00016986,2]
[338622463,1726805445369,-602.26,0.00016986,2]
[338622464,1726805445379,-68539.09,0.00016986,2]
[338622465,1726805445388,-500.0,0.00016986,2]
[338622466,1726805445397,-9034.37,0.00016986,2]
[338622467,1726805445407,-500.0,0.00016986,2]
[338622468,1726805445417,-27731.0137118,0.00016993,2]
[338622469,1726805445426,-33269.5398263,0.00016993,2]
[338622470,1726805445436,-1000.0,0.00017,2]
[338622471,1726805445445,-150.112233,0.00017,2]
[338622472,1726805445458,-10082.64794,0.00017,2]
[338622473,1726805445471,-8317.38495657,0.00017003,2]
[338622474,1726805445481,-500.0,0.00017013,2]
[338622475,1726805445490,-500.0,0.00017013,2]
[338622476,1726805445499,-500.0,0.00017013,2]
[338622477,1726805445509,-500.0,0.00017013,2]
[338622478,1726805445518,-500.0,0.00017013,2]
[338622479,1726805445528,-500.0,0.00017013,2]
[338622480,1726805445537,-500.0,0.00017013,2]
[338622481,1726805445547,-500.0,0.00017013,2]
[338622482,1726805445557,-574.55,0.00017013,2]
[338622483,1726805445567,-500.0,0.00017013,2]
[338622484,1726805445577,-1172.99,0.00017013,2]
[338622485,1726805445588,-506.6203096,0.00017013,2]
[338622486,1726805445600,-584.95,0.00017013,2]
[338622487,1726805445610,-907.38,0.00017013,2]
[338622488,1726805445619,-501.43925429,0.00017013,2]
[338622489,1726805445630,-522.06795901,0.00017013,2]
[338622490,1726805445640,-500.0,0.00017013,2]
[338622491,1726805445651,-500.0,0.00017013,2]
[338622492,1726805445660,-500.0,0.00017013,2]
[338622493,1726805445670,-534.53592009,0.00017013,2]
[338622494,1726805445680,-500.0,0.00017013,2]
[338622495,1726805445689,-715.61,0.00017013,2]
[338622496,1726805445699,-500.0,0.00017013,2]
[338622497,1726805445711,-500.0,0.00017013,2]
[338622498,1726805445721,-500.0,0.00017013,2]
[338622500,1726805445730,-500.0,0.00017013,2]
[338622501,1726805445741,-151.0,0.00017013,2]
[338622502,1726805445750,-504.48829786,0.00017013,2]
[338622503,1726805445759,-238.11,0.00017013,2]
[338622504,1726805445769,-503.8766295,0.00017013,2]
[338622506,1726805445778,-503.45819037,0.00017013,2]
[338622508,1726805445788,-500.0,0.00017013,2]
[338622509,1726805445798,-2379.22,0.00017013,2]
[338622510,1726805445807,-500.0,0.00017013,2]
[338622511,1726805445817,-500.0,0.00017013,2]
[338622512,1726805445827,-1216.33,0.00017013,2]
[338622513,1726805445839,-500.0,0.00017013,2]
[338622515,1726805445852,-500.0,0.00017013,2]
[338622518,1726805445863,-500.0,0.00017013,2]
[338622519,1726805445874,-500.0,0.00017013,2]
[338622520,1726805445885,-500.0,0.00017013,2]
[338622522,1726805445894,-338.4075647,0.00017013,2]
[338622523,1726805445905,-500.0,0.00017013,2]
[338622524,1726805445915,-500.0,0.00017013,2]
[338622525,1726805445925,-500.0,0.00017013,2]
[338622526,1726805445935,-500.0,0.00017013,2]
[338622527,1726805445944,-210.16951302,0.00017013,2]
[338622528,1726805445952,-500.92807811,0.00017013,2]
[338622529,1726805445972,-880.0,0.00017013,2]
[338622530,1726805445982,-500.0,0.00017013,2]
[338622531,1726805445991,-500.0,0.00017013,2]
[338622532,1726805446001,-500.0,0.00017013,2]
[338622533,1726805446010,-592.9,0.00017013,2]
[338622534,1726805446020,-500.0,0.00017013,2]
[338622535,1726805446029,-500.0,0.00017013,2]
[338622536,1726805446038,-291.30016533,0.00017013,2]
[338622537,1726805446052,-208.69983467,0.00017013,2]
[338622538,1726805446062,-500.0,0.00017013,2]
[338622539,1726805446071,-288.1922664,0.00017013,2]
[338622540,1726805446081,-773.1,0.00017013,2]
[338622541,1726805446090,-500.0,0.00017013,2]
[338622542,1726805446100,-500.0,0.00017013,2]
[338622543,1726805446110,-500.0,0.00017013,2]
[338622544,1726805446119,-500.0,0.00017013,2]
[338622545,1726805446129,-500.0,0.00017013,2]
[338622546,1726805446139,-628.86211023,0.00017013,2]
[338622547,1726805446148,-500.0,0.00017013,2]
[338622548,1726805446157,-728.42,0.00017013,2]
[338622549,1726805446167,-656.39,0.00017013,2]
[338622550,1726805446176,-500.0,0.00017013,2]
[338622551,1726805446185,-500.0,0.00017013,2]
[338622552,1726805446195,-1274.762704,0.00017013,2]
[338622553,1726805446204,-289.14045462,0.00017013,2]
[338622554,1726805446213,-500.0,0.00017013,2]
[338622555,1726805446223,-750.77,0.00017013,2]
[338622556,1726805446232,-500.0,0.00017013,2]
[338622557,1726805446241,-500.0,0.00017013,2]
[338622558,1726805446251,-500.0,0.00017013,2]
[338622560,1726805446260,-500.0,0.00017013,2]
[338622562,1726805446269,-500.0,0.00017013,2]
[338622563,1726805446278,-500.0,0.00017013,2]
[338622565,1726805446288,-881.43,0.00017013,2]
[338622567,1726805446299,-317.12130646,0.00017013,2]
[338622569,1726805446308,-500.0,0.00017013,2]
[338622571,1726805446317,-500.0,0.00017013,2]
[338622573,1726805446326,-591.46345052,0.00017013,2]
[338622574,1726805446335,-501.92033581,0.00017013,2]
[338622576,1726805446345,-500.0,0.00017013,2]
[338622577,1726805446354,-500.0,0.00017013,2]
[338622578,1726805446363,-500.0,0.00017013,2]
[338622579,1726805446373,-500.0,0.00017013,2]
[338622580,1726805446383,-500.0,0.00017013,2]
[338622581,1726805446393,-539.91237303,0.00017013,2]
[338622582,1726805446402,-501.16357467,0.00017013,2]
[338622583,1726805446412,-500.0,0.00017013,2]
[338622584,1726805446422,-500.0,0.00017013,2]
[338622585,1726805446432,-500.0,0.00017013,2]
[338622586,1726805446441,-548.89,0.00017013,2]
[338622587,1726805446450,-500.0,0.00017013,2]
[338622588,1726805446469,-500.0,0.00017013,2]
[338622589,1726805446479,-500.0,0.00017013,2]
[338622590,1726805446488,-500.0,0.00017013,2]
[338622591,1726805446633,-500.0,0.00017013,2]
[338622592,1726805446643,-601.60774062,0.00017013,2]
[338622593,1726805446653,-500.0,0.00017013,2]
[338622594,1726805446663,-500.0,0.00017013,2]
[338622595,1726805446673,-500.0,0.00017013,2]
[338622596,1726805446682,-596.8875343,0.00017013,2]
[338622597,1726805446691,-500.0,0.00017013,2]
[338622598,1726805446701,-867.72,0.00017013,2]
[338622599,1726805446712,-501.14747057,0.00017013,2]
[338622600,1726805446722,-500.0,0.00017013,2]
[338622601,1726805446732,-1000.0,0.00017013,2]
[338622602,1726805446743,-850.97,0.00017013,2]
[338622603,1726805446752,-186.51171452,0.00017013,2]
[338622604,1726805446762,-500.0,0.00017013,2]
[338622605,1726805446771,-500.0,0.00017013,2]
[338622606,1726805446781,-500.67390841,0.00017013,2]
[338622607,1726805446792,-630.5,0.00017013,2]
[338622608,1726805446802,-485.32150146,0.00017013,2]
[338622609,1726805446813,-500.0,0.00017013,2]
[338622610,1726805446825,-500.0,0.00017013,2]
[338622611,1726805446834,-500.0,0.00017013,2]
[338622612,1726805446844,-500.0,0.00017013,2]
[338622613,1726805446855,-995.79,0.00017013,2]
[338622614,1726805446870,-868.44,0.00017013,2]
[338622615,1726805446881,-891.83,0.00017013,2]
[338622616,1726805446892,-500.0,0.00017013,2]
[338622617,1726805446903,-500.0,0.00017013,2]
[338622618,1726805446913,-668.64,0.00017013,2]
[338622619,1726805446923,-506.58629023,0.00017013,2]
[338622620,1726805446935,-501.92563476,0.00017013,2]
[338622621,1726805446948,-591.22,0.00017013,2]
[338622622,1726805446960,-647.06,0.00017013,2]
[338622623,1726805446970,-500.29809521,0.00017013,2]
[338622624,1726805446979,-530.87,0.00017013,2]
[338622625,1726805446989,-500.0,0.00017013,2]
[338622626,1726805447000,-563.7,0.00017013,2]
[338622627,1726805447009,-513.59,0.00017013,2]
[338622628,1726805447020,-500.0,0.00017013,2]
[338622629,1726805447031,-606.07379822,0.00017013,2]
[338622630,1726805447041,-500.0,0.00017013,2]
[338622631,1726805447053,-500.0,0.00017013,2]
[338622632,1726805447063,-500.0,0.00017013,2]
[338622633,1726805447074,-599.17,0.00017013,2]
[338622634,1726805447084,-500.0,0.00017013,2]
[338622635,1726805447095,-500.0,0.00017013,2]
[338622636,1726805447105,-500.0,0.00017013,2]
[338622637,1726805447117,-500.0,0.00017013,2]
[338622638,1726805447128,-947.31,0.00017013,2]
[338622639,1726805447137,-500.0,0.00017013,2]
[338622640,1726805447147,-500.0,0.00017013,2]
[338622641,1726805447158,-500.0,0.00017013,2]
[338622642,1726805447168,-500.0,0.00017013,2]
[338622643,1726805447178,-500.0,0.00017013,2]
[338622644,1726805447187,-1147.3,0.00017013,2]
[338622645,1726805447197,-500.0,0.00017013,2]
[338622646,1726805447208,-500.0,0.00017013,2]
[338622647,1726805447218,-590.79,0.00017013,2]
[338622648,1726805447227,-634.26,0.00017013,2]
[338622649,1726805447237,-707.46,0.00017013,2]
[338622650,1726805447246,-500.51358555,0.00017013,2]
[338622651,1726805447256,-503.61890937,0.00017013,2]
[338622652,1726805447266,-211.73602243,0.00017013,2]
[338622653,1726805447276,-500.0,0.00017013,2]
[338622654,1726805447286,-500.0,0.00017013,2]